bitfinex-derivatives/quotes_ETHF0:USTF0_20260116
["timestamp","ask_amount","ask_price","bid_price","bid_amount"]
[1768585497781,0.81926285,3286.6,3285.1,1.2677691]
[1768585497973,0.00256055,3286.7,3285.1,1.2677691]
[1768585498171,1.16468088,3286.7,3284.9,1.23629172]
[1768585498372,1.16468088,3286.7,3285.0,40.8]
[1768585498676,1.16468088,3286.7,3285.3,1.23629172]
[1768585498978,1.31686088,3286.7,3285.0,40.8]
[1768585499174,1.16212033,3286.6,3285.0,40.8]
[1768585500084,1.16212033,3286.6,3284.8,1.15505581]
[1768585500582,1.16212033,3286.6,3284.9,40.8]
[1768585501278,1.16212033,3286.6,3284.4,1.31040306]
[1768585501484,1.16212033,3286.6,3284.8,1.23629172]
[1768585504281,1.31430033,3286.6,3284.8,1.23629172]
[1768585504485,1.16212033,3286.6,3284.6,40.8]
[1768585505588,0.15219,3286.5,3284.6,40.8]
[1768585505887,1.31431033,3286.5,3284.8,1.23629172]
[1768585507382,1.31431033,3286.4,3284.6,40.8]
[1768585507584,1.16212033,3286.2,3284.6,40.8]
[1768585508181,1.16212033,3286.0,3284.4,0.00306725]
[1768585508383,1.16212033,3285.9,3284.4,0.00306725]
[1768585509879,1.16212033,3286.3,3284.8,1.23629172]
[1768585510086,1.16212033,3286.3,3284.6,2.72767841]
[1768585511492,1.31433033,3286.1,3284.4,0.00306725]
[1768585513593,1.31433033,3286.1,3284.4,2.73074566]
[1768585516098,1.31433033,3286.1,3284.4,0.00306725]
[1768585520693,1.16212033,3285.7,3284.4,0.00306725]
[1768585521002,1.31434033,3285.7,3284.4,0.00306725]
[1768585523399,1.18275283,3285.3,3283.9,2.72767841]
[1768585523604,1.18275283,3285.3,3283.8,1.38561995]
[1768585524501,1.18275283,3285.3,3283.8,1.38832587]
[1768585526791,1.18275283,3285.2,3283.8,1.38832587]
[1768585527192,1.18275283,3285.0,3283.8,0.00270592]
[1768585527401,1.18275283,3284.7,3283.8,0.00270592]
[1768585529703,0.15226,3285.0,3283.8,0.00270592]
[1768585529910,1.17408594,3285.2,3283.8,1.23899764]
[1768585530112,1.17408594,3285.6,3283.8,1.23899764]
[1768585532897,1.17408594,3285.6,3283.8,2.37014452]
[1768585533508,1.17408594,3285.6,3283.9,40.8]
[1768585535813,1.17408594,3285.6,3284.0,1.23629172]
[1768585539423,1.17408594,3285.6,3284.4,1.23665927]
[1768585539608,1.17408594,3285.4,3284.2,1.23665927]
[1768585540303,1.17408594,3285.3,3284.0,1.23665927]
[1768585540705,1.17408594,3285.3,3284.2,1.23665927]
[1768585540911,1.32630594,3285.7,3284.4,1.23665927]
[1768585541113,1.32630594,3285.7,3284.6,1.23665927]
[1768585541620,1.32630594,3285.7,3284.4,1.23665927]
[1768585543122,2.56296521,3285.7,3284.4,1.23665927]
[1768585543418,1.17408594,3285.6,3284.4,1.23665927]
[1768585543625,1.17408594,3285.6,3284.3,1.23665927]
[1768585544430,0.15222,3285.7,3285.0,1.23665927]
[1768585544622,1.17408594,3286.2,3285.4,1.23665927]
[1768585544813,1.17408594,3286.2,3285.2,1.23665927]
[1768585546214,1.17408594,3286.2,3285.4,1.23665927]
[1768585546524,1.17408594,3286.6,3285.4,1.23665927]
[1768585548915,1.17408594,3286.6,3285.2,1.23665927]
[1768585549115,1.17408594,3286.4,3285.2,1.23665927]
[1768585551914,1.17408594,3286.4,3285.0,1.23665927]
[1768585552223,1.20978935,3286.1,3284.7,1.23665927]
[1768585553219,1.20978935,3286.1,3284.9,1.23665927]
[1768585554120,1.20978935,3286.1,3285.1,1.23665927]
[1768585554318,1.36197935,3286.5,3285.5,1.23665927]
[1768585555326,1.36197935,3286.5,3285.3,1.23665927]
[1768585556431,1.20978935,3285.9,3284.4,0.15228]
[1768585556728,1.20978935,3285.9,3284.7,1.23665927]
[1768585558222,1.20978935,3285.9,3284.9,1.23665927]
[1768585560028,1.20978935,3285.9,3284.4,0.15228]
[1768585560325,1.36200935,3285.8,3284.3,1.23665927]
[1768585560526,2.44644862,3285.5,3283.9,2.72767841]
[1768585560720,1.20978935,3285.4,3284.1,1.23665927]
[1768585561327,1.20978935,3285.4,3284.3,1.23665927]
[1768585566434,1.20978935,3285.4,3284.0,2.72767841]
[1768585566631,1.23665927,3285.1,3283.9,2.72767841]
[1768585566827,1.23665927,3284.6,3283.8,0.00270592]
[1768585567030,1.20978935,3284.8,3283.8,0.00270592]
[1768585568232,1.20978935,3284.8,3284.0,1.23665927]
[1768585568434,1.36202935,3285.3,3284.3,1.23665927]
[1768585568633,1.36202935,3285.3,3284.5,1.23665927]
[1768585569136,1.20978935,3285.3,3284.5,1.23665927]
[1768585569333,1.20978935,3285.3,3284.3,1.23665927]
[1768585570623,1.20978935,3285.3,3284.7,1.23665927]
[1768585570831,1.20978935,3285.3,3284.5,1.23665927]
[1768585571635,1.20978935,3285.3,3284.3,1.23665927]
[1768585572036,1.20978935,3285.3,3284.0,1.23665927]
[1768585572429,1.20978935,3285.3,3284.1,1.23665927]
[1768585572834,1.20978935,3285.1,3283.8,0.00270592]
[1768585573139,4.749,3285.9,3283.8,0.00270592]
[1768585573140,1.20978935,3284.6,3283.8,0.00270592]
[1768585575441,1.20978935,3284.6,3283.9,1.23665927]
[1768585575833,1.20978935,3284.6,3283.8,0.00270592]
[1768585577449,1.20978935,3284.6,3283.0,45.69415831]
[1768585578050,1.20978935,3284.6,3283.0,4.89415831]
[1768585578249,1.20978935,3284.6,3282.3,0.15238]
[1768585578250,1.20978935,3284.5,3282.3,0.15238]
[1768585578556,1.20978935,3283.7,3282.3,0.00300369]
[1768585578751,1.21232105,3283.7,3282.3,0.00300369]
[1768585580457,1.21232105,3283.7,3281.4,0.006095]
[1768585580458,1.20978935,3283.3,3281.4,0.006095]
[1768585580947,1.20978935,3283.3,3281.6,1.78160755]
[1768585581347,1.20978935,3283.3,3281.4,0.006095]
[1768585581655,1.20978935,3283.3,3281.4,0.00859348]
[1768585582049,1.20978935,3283.3,3281.6,3.0515842]
[1768585582359,1.15571878,3283.7,3281.7,1.11756665]
[1768585584052,1.15571878,3283.7,3281.8,40.8]
[1768585585451,1.15571878,3283.7,3281.6,0.15241]
[1768585586053,1.15571878,3283.7,3281.7,40.8]
[1768585586248,1.15571878,3283.7,3281.7,40.7]
[1768585586452,1.15571878,3283.7,3281.7,40.85241]
[1768585586651,1.15571878,3283.7,3281.8,0.1524]
[1768585586959,1.15571878,3283.7,3281.8,1.26996665]
[1768585587656,1.15571878,3283.7,3281.8,0.1524]
[1768585588856,1.15571878,3283.7,3281.9,0.1524]
[1768585592054,1.10737281,3283.4,3281.7,40.7]
[1768585592260,1.25972281,3283.1,3281.4,0.00859348]
[1768585595165,1.10737281,3283.1,3281.4,0.00859348]
[1768585596260,1.10737281,3283.6,3281.7,1.78160755]
[1768585597771,1.10737281,3283.6,3281.8,1.19039696]
[1768585598163,0.0025317,3283.7,3281.9,41.99039696]
[1768585598362,0.0025317,3283.7,3282.2,1.78160755]
[1768585598563,0.0025317,3283.7,3282.2,6.47700451]
[1768585598770,0.0025317,3283.7,3282.2,6.62938451]
[1768585599063,0.0025317,3283.7,3282.3,0.15238]
[1768585599268,1.10737281,3284.5,3282.7,1.78160755]
[1768585599467,1.10737281,3285.0,3282.8,1.34275696]
[1768585599769,1.10737281,3285.0,3282.9,1.19039696]
[1768585599958,1.10737281,3285.0,3283.0,4.69539696]
[1768585600161,1.10737281,3285.0,3283.1,3.505]
[1768585600362,1.10737281,3285.0,3283.1,4.84773696]
[1768585600563,1.1096699,3285.0,3283.1,4.84773696]
[1768585601063,1.1096699,3285.0,3283.2,1.19039696]
[1768585602574,0.00229709,3285.0,3283.3,1.34272696]
[1768585603380,0.00229709,3285.0,3283.4,1.34272696]
[1768585603674,0.00229709,3285.0,3283.5,40.8]
[1768585606872,0.00229709,3285.0,3283.5,40.95232]
[1768585607078,0.00229709,3285.0,3283.5,42.14271696]
[1768585607266,0.00229709,3285.0,3283.6,1.34271696]
[1768585607977,0.00229709,3285.0,3283.7,0.15231]
[1768585608278,1.10737281,3285.5,3283.7,0.15566982]
[1768585608570,1.10737281,3286.0,3283.9,0.15231]
[1768585609164,1.10983087,3286.0,3284.2,0.15229]
[1768585609969,1.10983087,3286.0,3284.2,1.34268696]
[1768585610866,1.10983087,3286.0,3284.3,40.8]
[1768585612175,1.10983087,3286.0,3284.3,40.95229]
[1768585612377,1.10983087,3286.0,3284.3,42.01092647]
[1768585612576,0.00245806,3286.0,3284.4,1.21092647]
[1768585613070,1.19274241,3286.8,3285.1,1.21092647]
[1768585613379,1.19274241,3286.8,3285.2,3.66025]
[1768585613581,1.19274241,3286.8,3285.3,0.15224]
[1768585613976,1.19538025,3286.8,3285.3,0.15224]
[1768585615177,1.19538025,3286.8,3285.2,3.508]
[1768585615178,1.19538025,3286.8,3284.6,1.36319647]
[1768585615381,1.19538025,3286.8,3284.6,0.15227]
[1768585615675,1.19538025,3286.8,3284.7,3.506]
[1768585616584,1.34755025,3286.8,3284.7,3.506]
[1768585618165,1.34755025,3286.8,3284.6,0.15227]
[1768585618372,1.19274241,3286.6,3284.6,0.15227]
[1768585618571,1.34492241,3286.6,3284.4,3.503]
[1768585618769,1.19274241,3286.6,3284.3,40.8]
[1768585619380,1.19274241,3286.0,3283.7,0.00335982]
[1768585621168,1.19274241,3286.0,3283.9,1.21092647]
[1768585621582,1.19274241,3286.0,3283.7,0.00335982]
[1768585621974,1.34495241,3286.0,3283.7,0.00335982]
[1768585625873,1.19274241,3285.8,3283.7,0.00335982]
[1768585629675,1.34496241,3285.8,3283.7,0.00335982]
[1768585638792,1.34496241,3285.8,3283.7,0.15566982]
[1768585639589,1.19274241,3285.6,3283.7,0.15566982]
[1768585640288,1.19274241,3285.4,3283.7,0.15566982]
[1768585640494,1.34498241,3285.4,3283.7,0.00335982]
[1768585642693,1.22002634,3285.2,3283.7,0.00335982]
[1768585642898,1.22002634,3284.9,3283.3,2.72767841]
[1768585643094,1.22002634,3284.9,3283.0,2.72767841]
[1768585644105,1.22002634,3284.9,3283.0,2.73063011]
[1768585644503,1.22002634,3284.9,3283.1,2.72767841]
[1768585644892,0.15228,3284.6,3283.1,2.72767841]
[1768585645098,1.22002634,3284.5,3283.0,0.0029517]
[1768585645302,1.37483436,3284.5,3283.0,0.0029517]
[1768585648300,1.37483436,3284.5,3282.5,2.72767841]
[1768585648301,1.22002634,3284.1,3282.4,2.72767841]
[1768585648508,1.22002634,3284.1,3282.3,2.72767841]
[1768585649198,1.22002634,3284.1,3282.3,2.73090006]
[1768585650406,1.22002634,3284.1,3282.3,0.00322165]
[1768585654406,1.11690396,3283.9,3282.3,0.00322165]
[1768585660011,1.11690396,3283.9,3282.4,3.522]
[1768585665322,1.11690396,3283.8,3282.5,1.23790992]
[1768585667228,1.23790992,3283.2,3282.3,3.53322165]
[1768585667530,1.11690396,3283.4,3282.3,3.53322165]
[1768585668832,1.11690396,3283.3,3282.3,0.00322165]
[1768585669923,1.11690396,3283.7,3282.7,1.23790992]
[1768585670128,1.11690396,3283.7,3282.4,1.23790992]
[1768585670427,1.11690396,3283.5,3282.3,0.00322165]
[1768585670615,2.35481388,3283.4,3282.3,0.00322165]
[1768585670926,1.11690396,3283.3,3282.3,0.00322165]
[1768585672528,1.11690396,3283.3,3282.3,1.24113157]
[1768585673028,1.11690396,3283.3,3282.5,1.23790992]
[1768585673231,1.3592853,3283.7,3282.5,1.23790992]
[1768585677825,1.2069653,3283.6,3282.3,3.96880998]
[1768585678533,1.2069653,3283.6,3282.3,2.73090006]
[1768585679135,1.2069653,3283.6,3282.3,3.96880998]
[1768585680333,1.2069653,3283.6,3282.3,2.73090006]
[1768585681922,1.2069653,3284.2,3283.0,1.23790992]
[1768585682127,2.02632725,3284.1,3283.0,1.23790992]
[1768585682323,1.2069653,3284.1,3283.0,1.23790992]
[1768585682529,1.2069653,3284.0,3282.5,2.72767841]
[1768585682730,1.2069653,3283.7,3282.5,2.72767841]
[1768585682927,1.2069653,3283.7,3282.4,3.96558833]
[1768585683136,1.23790992,3283.4,3282.4,2.72767841]
[1768585684125,1.2069653,3283.6,3282.4,2.72767841]
[1768585684332,1.23790992,3283.1,3282.4,2.72767841]
[1768585684526,1.23790992,3282.9,3282.3,0.00322165]
[1768585684731,2.44487522,3282.6,3281.8,2.72767841]
[1768585684932,2.44487522,3282.6,3281.6,2.72767841]
[1768585685334,1.2069653,3282.6,3281.6,2.72767841]
[1768585685937,1.2069653,3282.6,3281.6,2.73009822]
[1768585686136,1.2069653,3283.2,3281.6,2.73009822]
[1768585687245,1.2069653,3283.2,3281.6,0.00241981]
[1768585687450,1.2069653,3283.2,3281.6,2.73009822]
[1768585688544,1.2069653,3283.2,3281.6,3.85552804]
[1768585688745,0.15234,3283.3,3281.7,5.63688106]
[1768585688941,0.15234,3283.3,3281.8,2.72767841]
[1768585691447,1.2069653,3283.4,3281.8,2.72767841]
[1768585693348,0.15231,3283.8,3281.9,1.12542982]
[1768585693548,0.15231,3283.8,3281.6,0.00241981]
[1768585693549,0.15231,3283.8,3282.1,3.85310823]
[1768585693849,0.15231,3283.8,3282.2,40.8]
[1768585694039,1.3592753,3283.8,3282.2,40.8]
[1768585694750,1.3592753,3283.8,3282.2,43.52767841]
[1768585697542,1.3592753,3283.8,3282.3,2.72767841]
[1768585700654,1.3592753,3283.8,3282.2,43.52767841]
[1768585700855,1.3592753,3283.8,3282.2,2.72767841]
[1768585703062,1.3592753,3283.8,3282.3,2.72767841]
[1768585703464,1.3592753,3283.8,3282.2,2.72767841]
[1768585706368,1.3592753,3283.8,3282.2,6.26267841]
[1768585707475,1.17462608,3283.6,3282.3,1.23811008]
[1768585707670,1.17462608,3283.6,3282.2,2.72767841]
[1768585707876,1.23811008,3283.0,3282.0,2.72767841]
[1768585708071,1.17462608,3283.3,3281.9,3.96578849]
[1768585708267,1.17462608,3283.3,3282.1,1.23811008]
[1768585711677,1.17462608,3283.3,3281.9,1.23811008]
[1768585713470,0.15233,3283.5,3282.5,1.23811008]
[1768585713980,1.13080677,3283.7,3282.5,1.23811008]
[1768585714578,1.39041008,3284.1,3282.7,1.23811008]
[1768585714879,1.9581855,3284.0,3282.7,1.23811008]
[1768585715076,0.82737873,3283.9,3282.7,1.23811008]
[1768585715284,0.82737873,3283.8,3282.7,1.23811008]
[1768585715473,1.13080677,3283.9,3282.7,1.23811008]
[1768585715673,0.82749326,3283.8,3282.7,1.23811008]
[1768585715882,1.13080677,3283.9,3282.7,1.23811008]
[1768585716084,0.82749252,3283.8,3282.7,1.23811008]
[1768585716383,1.13080677,3283.9,3282.7,1.23811008]
[1768585716580,0.82761108,3283.8,3282.7,1.23811008]
[1768585716879,1.13080677,3283.9,3282.7,1.23811008]
[1768585717080,0.82761109,3283.8,3282.7,1.23811008]
[1768585717381,1.13080677,3283.9,3282.7,1.23811008]
[1768585717587,2.36891685,3283.7,3282.3,1.23811008]
[1768585719478,1.13080677,3283.6,3282.3,1.23811008]
[1768585720578,1.13080677,3283.6,3282.1,1.23811008]
[1768585720774,1.13080677,3283.4,3282.0,2.72767841]
[1768585720978,1.13080677,3283.4,3281.9,3.96578849]
[1768585721379,1.13080677,3283.4,3282.0,2.72767841]
[1768585721686,1.13080677,3283.4,3281.9,3.96578849]
[1768585721873,1.23811008,3283.2,3281.9,3.96578849]
[1768585722078,1.13080677,3283.4,3282.2,1.23811008]
[1768585722378,0.15232,3283.6,3282.5,1.23811008]
[1768585723381,0.15232,3283.6,3282.0,3.9656435]
[1768585725085,1.28312677,3283.6,3282.0,3.9656435]
[1768585725484,1.28312677,3283.6,3282.0,2.72767841]
[1768585727879,1.28312677,3283.6,3281.9,2.72767841]
[1768585728383,1.28312677,3283.6,3282.0,2.72767841]
[1768585728782,1.28312677,3283.6,3281.9,2.72767841]
[1768585729087,1.13080677,3283.5,3281.9,2.72767841]
[1768585732291,1.13080677,3283.5,3282.0,2.72767841]
[1768585732492,1.13080677,3283.5,3281.9,2.72767841]
[1768585733092,1.13080677,3283.5,3282.0,2.72767841]
[1768585734895,1.13080677,3283.5,3281.9,2.72767841]
[1768585737193,0.82839474,3283.4,3281.9,2.72767841]
[1768585737392,1.13080677,3283.5,3281.9,2.72767841]
[1768585737596,2.0475723,3283.4,3281.9,2.72767841]
[1768585737787,1.21917756,3283.4,3281.9,2.72767841]
[1768585737987,1.21917756,3283.4,3281.8,1.23796509]
[1768585737988,1.21917756,3283.4,3282.0,2.72767841]
[1768585739793,1.21917756,3283.4,3281.9,2.72767841]
[1768585740195,1.21917756,3283.8,3282.2,2.43730463]
[1768585740400,1.21917756,3283.6,3282.0,2.72767841]
[1768585740700,2.04755519,3283.5,3282.0,2.72767841]
[1768585740896,1.21917756,3283.5,3282.0,2.72767841]
[1768585744899,1.21917756,3283.5,3282.1,2.72767841]
[1768585751104,0.15231,3283.8,3282.2,1.23796509]
[1768585751295,1.21917756,3283.6,3282.1,2.72767841]
[1768585751603,1.21917756,3283.4,3282.0,2.72767841]
[1768585754807,1.21917756,3283.1,3282.0,2.72767841]
[1768585755009,1.21917756,3283.1,3281.7,6.56703758]
[1768585755305,1.21917756,3283.1,3281.7,2.72767841]
[1768585755505,1.21917756,3283.1,3281.6,2.73009822]
[1768585756406,3.048,3284.2,3281.7,1.19933954]
[1768585756407,1.37149756,3283.7,3281.7,1.19933954]
[1768585756607,1.21917756,3283.5,3281.7,1.19933954]
[1768585756902,2.30157926,3283.4,3281.7,1.19933954]
[1768585757104,0.82611218,3283.3,3281.7,1.19933954]
[1768585757307,0.82611218,3283.2,3281.7,1.19933954]
[1768585757497,1.21917756,3283.4,3281.7,1.19933954]
[1768585757699,2.04514607,3283.3,3281.7,1.19933954]
[1768585758005,1.21917756,3283.3,3281.7,1.19933954]
[1768585758202,1.21917756,3283.3,3281.6,3.96806331]
[1768585758708,1.21917756,3283.2,3281.6,3.96806331]
[1768585760598,1.21917756,3283.2,3281.6,5.16740285]
[1768585761200,1.21917756,3283.2,3281.7,2.72767841]
[1768585761606,0.15233,3283.4,3282.0,1.23796509]
[1768585762705,1.21020462,3283.6,3282.0,1.23796509]
[1768585763312,1.21020462,3283.6,3282.0,3.9656435]
[1768585769012,1.21020462,3283.6,3282.0,5.07837619]
[1768585769513,4.751,3283.8,3282.1,1.17216494]
[1768585769812,1.21524821,3283.4,3281.7,3.83935917]
[1768585770114,1.39033509,3282.6,3281.2,1.17216494]
[1768585770407,0.15237,3282.6,3281.4,1.17825994]
[1768585770605,4.751,3283.8,3281.5,1.17216494]
[1768585770606,1.23796509,3283.8,3281.5,1.17216494]
[1768585770812,0.15234,3283.2,3281.5,1.17216494]
[1768585771111,0.15234,3283.2,3281.5,1.17546626]
[1768585771112,0.8249401,3283.1,3281.5,1.17546626]
[1768585773112,0.9772801,3283.1,3281.5,1.17546626]
[1768585773309,0.8249401,3283.0,3281.5,1.17546626]
[1768585776118,2.06290519,3283.0,3281.5,1.17546626]
[1768585776311,0.8249401,3282.9,3281.5,1.17546626]
[1768585779418,0.9772901,3282.9,3281.5,1.17546626]
[1768585779614,0.15235,3282.9,3281.5,1.17546626]
[1768585779819,0.85782722,3282.8,3281.5,1.17546626]
[1768585780019,0.15235,3282.9,3281.5,1.17546626]
[1768585780221,0.85782696,3282.8,3281.5,1.17546626]
[1768585780416,0.15235,3282.9,3281.5,1.17546626]
[1768585780617,0.85779389,3282.8,3281.5,1.17546626]
[1768585780817,0.15235,3282.9,3281.5,1.17546626]
[1768585781117,0.85780253,3282.8,3281.5,1.17546626]
[1768585781311,0.15235,3282.9,3281.5,1.17546626]
[1768585781511,0.85780233,3282.8,3281.5,1.17546626]
[1768585781706,0.15235,3282.9,3281.5,1.17546626]
[1768585781910,0.85780175,3282.8,3281.5,1.17546626]
[1768585782121,0.15235,3282.9,3281.5,1.17546626]
[1768585782420,0.85777523,3282.8,3281.5,1.17546626]
[1768585782620,0.15235,3282.9,3281.5,1.17546626]
[1768585782822,0.85778535,3282.8,3281.5,1.17546626]
[1768585783017,0.15235,3282.9,3281.5,1.17546626]
[1768585783324,1.23905052,3282.4,3281.5,1.17546626]
[1768585785220,1.23905052,3282.1,3281.5,1.17546626]
[1768585785523,1.23905052,3281.6,3280.1,0.15248]
[1768585785821,1.23905052,3281.6,3280.4,1.23905052]
[1768585786121,1.23905052,3281.9,3280.4,1.23905052]
[1768585786321,1.23905052,3281.9,3280.2,40.8]
[1768585786520,1.23905052,3281.3,3280.2,0.00298493]
[1768585786719,1.23905052,3281.6,3280.2,0.00298493]
[1768585787116,1.23905052,3281.7,3280.2,1.24203545]
[1768585787525,1.23905052,3281.7,3280.3,1.17216494]
[1768585788318,1.23905052,3281.4,3280.3,1.17216494]
[1768585788920,0.1524,3281.9,3280.6,1.17216494]
[1768585789122,0.00265146,3282.1,3281.2,1.23905052]
[1768585789316,0.00265146,3282.1,3281.3,1.17216494]
[1768585789515,1.23905052,3282.8,3281.3,1.17216494]
[1768585789723,1.23905052,3282.8,3281.5,1.17216494]
[1768585790621,1.24278896,3282.8,3281.5,1.17216494]
[1768585791023,1.23905052,3282.5,3281.5,1.17216494]
[1768585792424,1.23905052,3282.5,3281.1,2.60617761]
[1768585793324,1.23905052,3282.5,3281.2,1.36712709]
[1768585793534,1.39514896,3282.8,3281.2,1.36712709]
[1768585793826,1.39514896,3282.8,3280.6,3.65246]
[1768585793827,1.39514896,3282.8,3281.4,1.36712709]
[1768585796317,1.23905052,3282.3,3281.4,1.36712709]
[1768585797537,0.15609844,3282.8,3281.4,1.36712709]
[1768585797538,1.23905052,3282.5,3281.4,1.36712709]
[1768585798029,1.39514896,3282.8,3281.4,1.36712709]
[1768585798331,0.86542629,3282.7,3281.4,1.36712709]
[1768585798631,0.86542629,3282.6,3281.4,1.36712709]
[1768585798820,1.39514896,3282.8,3281.4,1.36712709]
[1768585799017,0.86590266,3282.7,3281.4,1.36712709]
[1768585799223,2.10495318,3282.6,3281.4,1.36712709]
[1768585799428,0.86590266,3282.5,3281.4,1.36712709]
[1768585800939,1.23905052,3282.3,3281.4,1.36712709]
[1768585802633,1.23905052,3281.9,3280.9,1.36712709]
[1768585803324,1.23905052,3282.2,3280.9,1.36712709]
[1768585803525,0.00373844,3282.8,3281.8,1.23905052]
[1768585803736,0.8666659,3282.7,3281.6,1.36712709]
[1768585803936,0.8666659,3282.6,3281.6,1.36712709]
[1768585804137,0.00373844,3282.8,3281.7,1.23905052]
[1768585804326,0.00373844,3282.8,3281.7,2.60617761]
[1768585805234,0.00373844,3282.8,3281.7,1.36712709]
[1768585806333,0.00373844,3282.8,3281.9,1.36712709]
[1768585811740,1.24278896,3282.8,3281.9,1.36712709]
[1768585812033,1.23905052,3282.5,3281.5,1.36712709]
[1768585812339,0.00373844,3282.8,3281.5,1.36712709]
[1768585812541,1.23905052,3282.7,3281.5,1.36712709]
[1768585823852,0.00373844,3282.8,3281.5,1.36712709]
[1768585824143,1.23905052,3282.6,3281.5,1.36712709]
[1768585824743,1.23905052,3282.7,3281.5,1.36712709]
[1768585826240,0.00373844,3282.8,3282.2,2.86092773]
[1768585826643,0.15232,3283.6,3282.2,2.86092773]
[1768585826850,1.12351512,3283.5,3282.2,2.86092773]
[1768585827050,0.86523673,3283.4,3282.2,2.86092773]
[1768585827250,0.86523673,3283.3,3282.2,2.86092773]
[1768585827453,0.86523673,3283.2,3282.2,1.62187721]
[1768585827649,0.86523673,3283.1,3282.2,1.62187721]
[1768585827950,0.00345291,3283.2,3282.2,1.62187721]
[1768585828152,0.86517306,3283.1,3282.2,1.62187721]
[1768585828450,0.00345291,3283.2,3282.2,1.62187721]
[1768585828648,0.86510474,3283.1,3282.2,1.62187721]
[1768585828845,0.00345291,3283.2,3282.2,2.86092773]
[1768585829039,0.86507973,3283.1,3282.3,1.64482916]
[1768585829244,0.00345291,3283.2,3282.3,1.64482916]
[1768585832145,1.23905052,3282.8,3281.9,1.64482916]
[1768585832346,1.23905052,3282.5,3281.1,1.64482916]
[1768585832552,1.23905052,3282.8,3281.1,1.64482916]
[1768585832756,0.86505447,3282.7,3281.4,1.64482916]
[1768585832946,1.23905052,3282.8,3281.4,1.64482916]
[1768585833147,0.86505457,3282.7,3281.4,1.64482916]
[1768585833348,0.15579291,3283.2,3281.4,1.64482916]
[1768585833656,1.23905052,3282.7,3281.4,1.64482916]
[1768585837257,1.23905052,3282.0,3281.0,1.64482916]
[1768585837448,1.23905052,3282.2,3281.0,1.64482916]
[1768585837849,1.23905052,3282.0,3281.0,1.64482916]
[1768585838042,1.23905052,3281.8,3280.7,4.96969171]
[1768585838452,1.23905052,3281.8,3280.7,6.61452087]
[1768585838954,1.23905052,3281.4,3280.2,1.64781409]
[1768585839357,1.23905052,3281.6,3280.2,1.64781409]
[1768585839559,1.23905052,3281.6,3280.3,1.23905052]
[1768585839860,1.23905052,3281.6,3280.4,1.64482916]
[1768585840257,0.15239,3282.1,3281.0,1.23905052]
[1768585840466,0.15239,3282.1,3281.0,2.88387968]
[1768585840761,1.23905052,3282.4,3281.1,1.64482916]
[1768585841060,0.86445502,3282.3,3281.1,1.64482916]
[1768585841261,1.23905052,3282.4,3281.1,1.64482916]
[1768585841461,0.86422334,3282.3,3281.1,1.64482916]
[1768585841662,1.23905052,3282.4,3281.1,1.64482916]
[1768585841863,0.86422348,3282.3,3281.1,1.64482916]
[1768585842056,1.23905052,3282.4,3281.1,1.64482916]
[1768585842355,0.86422713,3282.3,3281.1,1.64482916]
[1768585842555,1.23905052,3282.4,3281.1,1.64482916]
[1768585842757,0.86402746,3282.3,3281.1,1.64482916]
[1768585842958,1.23905052,3282.4,3281.1,1.64482916]
[1768585845467,0.15237,3282.6,3281.1,1.64482916]
[1768585845764,0.86066643,3282.5,3281.1,1.64482916]
[1768585845961,0.15237,3282.6,3281.1,1.64482916]
[1768585846166,1.23917045,3282.5,3281.1,1.64482916]
[1768585849259,1.78681518,3282.8,3281.1,1.64482916]
[1768585849459,0.86050382,3282.7,3281.1,1.64482916]
[1768585849663,0.15238,3282.4,3281.1,1.64482916]
[1768585849862,1.78681518,3282.8,3281.1,1.64482916]
[1768585850064,0.15237,3282.6,3281.1,1.64482916]
[1768585850264,0.15238,3282.4,3280.6,1.64482916]
[1768585850466,0.15239,3282.2,3280.6,1.64482916]
[1768585851374,0.15239,3282.1,3280.6,1.64482916]
[1768585851875,0.15239,3282.0,3280.6,1.64482916]
[1768585854371,0.1524,3281.9,3280.6,1.64482916]
[1768585854573,0.15241,3281.6,3280.2,1.79197938]
[1768585862166,0.15241,3281.6,3280.2,0.00298493]
[1768585865378,0.15242,3281.5,3280.2,0.00298493]
[1768585867273,0.86155461,3281.4,3280.2,0.00298493]
[1768585867475,0.15242,3281.5,3280.2,0.00298493]
[1768585867665,0.86147869,3281.4,3280.2,0.00298493]
[1768585867872,0.15242,3281.5,3280.2,1.79197938]
[1768585868271,0.15239,3282.1,3280.2,1.79197938]
[1768585868476,0.86134801,3282.0,3280.2,1.79197938]
[1768585868677,0.15239,3282.1,3280.2,1.79197938]
[1768585872779,1.23956223,3282.6,3280.3,1.78899445]
[1768585872979,1.11942868,3282.5,3280.3,1.78899445]
[1768585873171,0.15237,3282.6,3280.7,1.78899445]
[1768585873372,0.00345291,3283.2,3281.5,1.78899445]
[1768585873572,1.23956223,3283.1,3281.5,1.78899445]
[1768585874089,1.23956223,3282.5,3281.0,1.78899445]
[1768585882297,1.39193223,3282.5,3281.0,1.78899445]
[1768585883288,0.15237,3282.5,3281.0,1.78899445]
[1768585891795,0.85729352,3282.4,3281.0,1.78899445]
[1768585892105,0.15237,3282.5,3281.0,1.78899445]
[1768585892393,0.85729354,3282.4,3281.0,1.78899445]
[1768585892590,0.15237,3282.5,3281.0,1.78899445]
[1768585892786,0.85741474,3282.4,3281.0,1.78899445]
[1768585892992,0.15237,3282.5,3281.0,1.78899445]
[1768585893191,0.85741451,3282.4,3281.0,1.78899445]
[1768585893387,0.15237,3282.5,3281.0,1.78899445]
[1768585893590,0.85755715,3282.4,3281.0,1.78899445]
[1768585893794,0.15234,3283.1,3281.0,1.78899445]
[1768585893988,0.85745894,3283.0,3281.0,1.78899445]
[1768585894190,0.85745894,3282.9,3281.0,1.78899445]
[1768585894495,0.15234,3283.1,3281.0,1.78899445]
[1768585894693,0.85746877,3283.0,3281.0,1.78899445]
[1768585894897,0.85746877,3282.9,3281.0,1.78899445]
[1768585895094,0.15234,3283.1,3281.0,1.78899445]
[1768585895298,0.85742275,3283.0,3281.0,1.78899445]
[1768585895502,0.85742275,3282.9,3281.0,1.78899445]
[1768585895697,0.15234,3283.1,3281.0,1.78899445]
[1768585895993,1.1154972,3283.0,3281.0,1.78899445]
[1768585896288,0.8574626,3282.9,3281.0,1.78899445]
[1768585896487,0.15234,3283.1,3281.0,1.78899445]
[1768585896700,1.11566851,3283.0,3281.0,1.78899445]
[1768585896903,0.8575953,3282.9,3281.0,1.78899445]
[1768585897106,0.15234,3283.1,3281.0,1.78899445]
[1768585897399,1.11567047,3283.0,3281.0,1.78899445]
[1768585897601,0.85759671,3282.9,3281.0,1.78899445]
[1768585897801,0.15234,3283.1,3281.0,1.78899445]
[1768585898000,1.11604035,3283.0,3281.0,1.78899445]
[1768585898193,1.11614128,3282.9,3281.0,1.78899445]
[1768585898395,0.85788256,3282.8,3281.1,2.05346341]
[1768585898603,0.15234,3283.1,3281.1,2.05346341]
[1768585898788,1.26871163,3283.0,3281.1,2.05346341]
[1768585898993,1.11636163,3282.9,3281.1,2.05346341]
[1768585899192,0.85813038,3282.8,3281.1,2.05346341]